bitfinex-derivatives/quotes_ETHF0:USTF0_20251001
["timestamp","ask_amount","ask_price","bid_price","bid_amount"]
[1759341305061,0.56409171,4292.5,4292.4,1.017]
[1759341305262,0.91049171,4292.5,4292.4,1.017]
[1759341305470,0.91049171,4292.5,4292.4,0.4442]
[1759341305665,0.91049171,4292.5,4292.4,0.6842]
[1759341305866,1.32958171,4292.5,4292.4,0.6842]
[1759341306065,1.32958171,4292.5,4292.4,1.017]
[1759341306270,1.32958171,4292.5,4292.4,0.4643]
[1759341306466,0.41912,4292.2,4292.0,40.8]
[1759341306670,0.5618,4292.1,4292.0,41.1328]
[1759341306973,0.98093,4292.1,4292.0,40.8]
[1759341307160,0.98093,4292.1,4292.0,41.04]
[1759341307366,4.38195171,4292.5,4291.1,0.3328]
[1759341307367,0.1241,4291.5,4291.1,0.3328]
[1759341307573,0.1241,4291.5,4290.0,0.1344]
[1759341307574,0.9082,4291.5,4291.4,4.2248]
[1759341308365,0.9082,4291.5,4291.4,3.892]
[1759341308565,0.9082,4291.5,4291.4,3.2078]
[1759341308872,0.5733,4291.0,4290.9,3.2078]
[1759341309072,0.9082,4291.0,4290.9,3.4478]
[1759341309271,0.9082,4291.0,4290.9,44.4721]
[1759341309475,0.7841,4291.0,4290.9,44.8049]
[1759341309670,0.7841,4291.4,4291.3,0.777]
[1759341309875,0.7841,4291.4,4291.3,1.017]
[1759341311970,3.4347,4291.9,4291.8,0.4442]
[1759341312178,3.2078,4291.9,4291.8,1.017]
[1759341312668,3.2078,4292.4,4291.9,0.3328]
[1759341314876,0.78672213,4293.5,4293.4,1.01883868]
[1759341315574,4.11862213,4293.5,4293.4,0.24183868]
[1759341315767,4.11862213,4293.5,4293.4,0.00183868]
[1759341315972,4.11862213,4293.5,4293.4,0.24183868]
[1759341316173,4.11862213,4293.5,4293.4,0.46613868]
[1759341316376,0.78672213,4293.5,4293.4,1.01883868]
[1759341316968,0.91082213,4293.5,4293.4,0.68603868]
[1759341317678,0.78672213,4293.5,4293.4,1.01883868]
[1759341318579,0.91082213,4293.5,4293.4,0.68603868]
[1759341318878,0.91082213,4293.5,4293.4,0.46613868]
[1759341319775,0.78672213,4293.5,4293.4,1.01883868]
[1759341320376,0.548,4294.2,4294.1,0.4252]
[1759341320578,3.3319,4295.0,4294.2,0.3391]
[1759341320778,0.4202,4294.8,4294.7,0.7643]
[1759341320974,0.4202,4294.8,4294.7,1.0043]
[1759341321578,0.42254802,4294.8,4294.7,1.0043]
[1759341322077,0.00234802,4294.8,4294.7,1.0043]
[1759341322277,0.00234802,4294.8,4294.7,0.7643]
[1759341322479,0.00234802,4294.8,4294.7,37.3443]
[1759341322773,0.00234802,4294.8,4294.7,37.3433]
[1759341324280,0.6309,4295.5,4295.4,0.4448]
[1759341324580,0.8437,4295.5,4295.4,0.9927]
[1759341325377,0.84669284,4295.5,4295.4,0.9927]
[1759341325772,0.42789284,4295.5,4295.4,0.9927]
[1759341325971,0.68469284,4295.5,4295.4,0.24]
[1759341326175,1.10349284,4295.5,4295.4,0.24]
[1759341326778,1.10349284,4295.5,4295.4,0.5479]
[1759341326978,0.84669284,4295.5,4295.4,0.9927]
[1759341327580,0.63389284,4295.5,4295.4,0.9927]
[1759341327782,0.42179284,4295.5,4295.4,0.9927]
[1759341328686,0.00299284,4295.5,4295.4,0.9927]
[1759341328883,0.21509284,4295.5,4295.4,0.7527]
[1759341329089,0.21509284,4295.5,4295.4,37.3237]
[1759341329289,0.00299284,4295.5,4295.4,37.3237]
[1759341330085,0.42179284,4295.5,4295.4,37.3237]
[1759341330288,0.42179284,4295.5,4295.4,0.7527]
[1759341330491,0.84669284,4295.5,4295.4,0.9927]
[1759341330792,1.10349284,4295.5,4295.4,0.9927]
[1759341331190,0.84669284,4295.5,4295.4,0.9927]
[1759341336098,0.42789284,4295.5,4295.4,0.9927]
[1759341336299,0.00299284,4295.5,4295.4,0.9927]
[1759341336694,0.21509284,4295.5,4295.4,0.7527]
[1759341336992,0.00299284,4295.5,4295.4,0.9927]
[1759341337198,1.04674,4296.6,4296.2,0.4448]
[1759341337199,4.05142,4296.3,4296.2,0.4448]
[1759341337399,4.05142,4296.3,4296.2,0.9927]
[1759341338000,0.84362,4296.3,4296.2,0.9927]
[1759341338200,0.84541915,4296.3,4296.2,0.9927]
[1759341339095,0.42669915,4296.3,4296.2,0.9927]
[1759341339300,0.00179915,4296.3,4296.2,1.41143]
[1759341339502,0.00179915,4296.3,4296.2,0.9927]
[1759341340705,0.00179915,4296.3,4296.2,1.41143]
[1759341341104,3.2078,4296.8,4296.6,0.7527]
[1759341341105,0.41868,4296.7,4296.6,0.7527]
[1759341341305,0.84358,4296.7,4296.6,0.9927]
[1759341341492,0.84358,4296.7,4296.6,0.7676]
[1759341341698,0.84358,4296.7,4296.6,0.7527]
[1759341341997,0.84611248,4296.7,4296.6,0.99472188]
[1759341342504,0.84611248,4296.7,4296.6,0.75472188]
[1759341342708,0.84611248,4296.7,4296.6,0.99472188]
[1759341344099,0.84611248,4296.7,4296.6,0.75472188]
[1759341344398,1.10291248,4296.7,4296.6,0.52962188]
[1759341344602,6.10291248,4296.7,4296.6,0.24202188]
[1759341346002,0.41876,4295.9,4295.8,0.3079]
[1759341346206,0.41876,4295.9,4295.5,0.6621]
[1759341346207,1.10049,4295.6,4295.5,0.6621]
[1759341346507,0.84369,4295.6,4295.5,0.9021]
[1759341346803,0.4249,4295.6,4295.5,1.1272]
[1759341346999,0.63087,4295.8,4295.7,0.4448]
[1759341347194,0.63087,4295.8,4295.7,0.7527]
[1759341347400,0.84367,4295.8,4295.7,0.7527]
[1759341349307,0.84367,4295.8,4295.7,0.9927]
[1759341350001,0.84367,4295.8,4295.7,0.7527]
[1759341350596,0.84367,4295.8,4295.7,0.9927]
[1759341350800,0.41876,4296.0,4295.7,0.6848]
[1759341351005,0.63083,4296.2,4296.1,0.7527]
[1759341351207,1.37209685,4296.2,4296.1,0.9927]
[1759341352412,0.52846685,4296.2,4296.1,0.9927]
[1759341352804,0.74056685,4296.2,4296.1,0.7527]
[1759341353000,0.95336685,4296.2,4296.1,0.9927]
[1759341353202,0.41872,4296.3,4296.1,0.6848]
[1759341353503,0.63082,4296.3,4296.2,0.7527]
[1759341353809,1.15155598,4296.3,4296.2,0.7527]
[1759341354001,0.4187,4296.5,4296.2,0.9927]
[1759341354201,0.5173384,4296.4,4296.3,0.7498]
[1759341354403,0.21213248,4296.7,4296.6,0.4239]
[1759341354611,0.42122248,4296.7,4296.6,0.9898]
[1759341354804,0.63082248,4296.7,4296.6,0.9898]
[1759341355311,0.42122248,4296.7,4296.6,0.9898]
[1759341356715,0.00253248,4296.7,4296.6,0.9898]
[1759341357310,0.21213248,4296.7,4296.6,0.9898]
[1759341359719,0.00253248,4296.7,4296.6,0.9898]
[1759341360115,3.6307,4297.6,4297.5,0.8726]
[1759341360417,4.82284379,4297.6,4297.5,0.904]
[1759341360619,4.04929,4297.6,4297.5,0.8726]
[1759341360822,4.04929,4297.6,4297.0,0.1228]
[1759341360823,0.4229,4297.2,4297.1,0.5412]
[1759341361114,1.09986905,4297.2,4297.1,0.5659]
[1759341362619,1.09986905,4297.2,4297.1,0.7812]
[1759341363022,1.09986905,4297.2,4297.1,0.5412]
[1759341363322,1.09986905,4297.2,4297.1,0.7812]
[1759341364316,1.09986905,4297.2,4297.1,0.3259]
[1759341364519,0.6794,4296.7,4296.6,0.5412]
[1759341364719,0.6794,4296.7,4296.6,0.7812]
[1759341365018,0.4229,4296.7,4296.6,0.7812]
[1759341365219,0.84158,4296.7,4296.6,0.9898]
[1759341367817,1.09808,4296.7,4296.6,0.5659]
[1759341368218,1.09808,4296.7,4296.6,0.7812]
[1759341368422,1.09808,4296.7,4296.6,0.3259]
[1759341368721,1.09808,4296.7,4296.6,0.5659]
[1759341370620,0.41874,4296.1,4296.0,0.1345]
[1759341370828,3.83604,4297.1,4297.0,0.5467]
[1759341371024,4.04934,4297.1,4297.0,0.7867]
[1759341371226,4.04934,4297.1,4296.5,0.3381]
[1759341371227,0.62829,4296.6,4296.5,0.3381]
[1759341371421,0.84159,4296.6,4296.5,0.664]
[1759341371724,1.09809,4296.6,4296.5,0.904]
[1759341372116,0.84159,4296.6,4296.5,0.904]
[1759341372320,0.84159,4296.6,4296.5,1.1126]
[1759341374420,1.09809,4296.6,4296.5,0.3259]
[1759341374629,0.62834,4296.1,4296.0,0.8843]
[1759341375029,0.67525,4296.0,4295.9,3.5337]
[1759341375232,1.09815,4296.0,4295.9,3.989]
[1759341376221,1.09815,4296.0,4295.9,0.5659]
[1759341376536,4.30595,4296.0,4295.9,0.5659]
[1759341376824,4.30595,4296.0,4295.9,0.3259]
[1759341377026,1.09819,4295.6,4295.5,0.00223184]
[1759341377222,1.61073196,4295.6,4295.5,0.00223184]
[1759341377418,6.09819,4295.6,4295.5,0.00223184]
[1759341377624,1.09819,4295.6,4295.5,0.00223184]
[1759341377825,1.09819,4295.6,4295.5,0.54343184]
[1759341378220,1.09819,4295.6,4295.5,0.66623184]
[1759341381129,1.09819,4295.6,4295.5,0.32813184]
[1759341381334,1.09819,4295.6,4295.5,0.00223184]
[1759341381335,6.09819,4295.6,4295.5,0.00223184]
[1759341381929,1.08687,4294.8,4294.7,0.3103]
[1759341382230,1.08687,4294.8,4294.7,0.7726]
[1759341382432,0.83007,4294.8,4294.7,0.7726]
[1759341382825,0.83007,4294.8,4294.7,0.7747253]
[1759341383427,0.83007,4294.8,4294.7,0.9910253]
[1759341385734,1.04703,4295.4,4295.0,0.126]
[1759341385928,0.41884,4295.1,4295.0,0.8788]
[1759341386430,0.63294,4295.1,4295.0,0.8788]
[1759341386831,0.41884,4295.1,4295.0,0.8788]
[1759341388035,0.41884,4295.2,4295.0,0.5423]
[1759341388339,0.41884,4295.2,4295.1,0.7528]
[1759341389833,4.2547,4296.0,4295.6,0.4163]
[1759341390133,0.41877,4295.8,4295.7,0.9928]
[1759341390330,0.63287,4295.8,4295.7,0.9928]
[1759341391641,0.41877,4295.8,4295.7,0.9928]
[1759341393137,3.2078,4296.0,4295.8,0.7528]
[1759341393138,0.41876,4295.9,4295.8,0.7528]
[1759341393440,3.2078,4296.0,4295.9,0.7528]
[1759341393846,3.62655,4296.0,4295.9,0.7528]
[1759341394137,0.41875,4296.0,4295.9,0.7528]
[1759341395942,1.04671,4296.7,4295.9,0.7528]
[1759341396145,0.2141,4296.6,4296.5,0.8788]
[1759341396446,0.41869,4296.6,4296.5,1.1188]
[1759341396943,0.63279,4296.6,4296.5,1.1188]
[1759341397642,1.10039,4296.6,4296.5,0.3365]
[1759341397841,1.10039,4296.6,4296.5,0.5765]
[1759341398540,1.10039,4296.6,4296.5,0.7855]
[1759341398740,1.10039,4296.6,4296.5,0.9115]
[1759341398940,0.84349,4296.6,4296.5,1.1188]
[1759341399141,0.84349,4296.6,4296.5,0.8788]
[1759341399443,0.84349,4296.6,4296.5,1.1188]
[1759341399643,0.2141,4296.6,4296.5,1.5375]
[1759341399945,4.05124,4297.1,4297.0,0.8788]
[1759341400147,3.62644,4297.1,4297.0,1.1188]
[1759341400643,3.84054,4297.1,4297.0,1.1188]
[1759341400839,3.84054,4297.1,4297.0,0.6715]
[1759341400840,4.30814,4297.1,4297.0,0.6715]
[1759341401047,0.84349,4296.6,4296.5,0.8788]
[1759341401351,0.84349,4296.6,4296.5,1.1188]
[1759341402041,0.84349,4296.6,4296.5,0.8788]
[1759341402347,1.10039,4296.6,4296.5,0.9115]
[1759341404048,1.10039,4296.6,4296.5,0.6715]
[1759341404347,1.10039,4296.6,4296.5,0.9115]
[1759341404748,1.10039,4296.6,4296.5,0.5765]
[1759341405348,1.10039,4296.6,4296.5,0.5455]
[1759341405550,1.10039,4296.6,4296.5,1.1188]
[1759341405551,0.63279,4296.6,4296.5,1.1188]
[1759341407240,0.41869,4296.6,4296.5,1.1188]
[1759341407743,0.84349,4296.6,4296.5,1.1188]
[1759341408252,0.84349,4296.6,4296.5,0.8788]
[1759341408550,0.84349,4296.6,4296.5,1.1188]
[1759341409349,0.63279,4296.6,4296.5,1.1188]
[1759341412648,0.41869,4296.6,4296.5,1.1188]
[1759341414853,3.62644,4297.1,4297.0,0.5672]
[1759341415152,3.62644,4297.1,4297.0,1.1467]
[1759341415556,3.83404,4297.1,4297.0,1.1467]
[1759341416445,3.62644,4297.1,4297.0,1.1467]
[1759341416647,0.41864,4297.1,4297.0,1.1467]
[1759341419051,0.62624,4297.1,4297.0,1.1467]
[1759341419556,0.62624,4297.1,4297.0,0.9067]
[1759341419760,3.83404,4297.1,4297.0,1.1467]
[1759341419955,1.15091,4296.4,4296.3,3.4261]
[1759341420152,1.15091,4296.4,4296.3,3.2078]
[1759341420457,1.15091,4296.4,4295.1,3.6416]
[1759341420458,0.414,4295.2,4295.1,3.6416]
[1759341420646,0.83283,4295.2,4295.1,3.8816]
[1759341420953,1.15103,4295.2,4295.1,3.8816]
[1759341421152,1.15103,4295.2,4295.1,3.6416]
[1759341421355,1.15103,4295.2,4295.1,3.8816]
[1759341421851,1.15103,4295.2,4295.1,4.2211]
[1759341422552,0.62643,4295.2,4295.1,4.2211]
[1759341423362,0.94463,4295.2,4295.1,4.2211]
[1759341423862,0.4188,4295.6,4295.1,3.8816]
[1759341424055,0.9446,4295.6,4295.5,0.9067]
[1759341424254,0.41882,4295.3,4295.2,0.3395]
[1759341424451,0.7322,4295.2,4295.1,3.2078]
[1759341424756,1.15107,4294.8,4294.7,0.0021253]
[1759341424949,1.15107,4294.8,4294.7,0.2421253]
[1759341425152,6.15107,4294.8,4294.7,0.2421253]
[1759341425548,6.15107,4294.8,4294.7,0.0021253]
[1759341425853,6.15107,4294.8,4294.7,0.2421253]
[1759341426552,6.15107,4294.8,4294.7,0.0021253]
[1759341428052,0.4189,4294.5,4294.4,0.52515]
[1759341428250,4.4927,4294.5,4294.4,3.82e-06]
[1759341429160,0.833,4293.4,4293.3,3.4261]
[1759341429464,1.1512,4293.4,4293.3,3.4261]
[1759341430057,1.1512,4293.4,4293.3,3.2078]
[1759341430249,1.1512,4293.4,4293.3,3.66778205]
[1759341430250,1.15351527,4293.4,4293.3,3.66778205]
[1759341431054,1.15351527,4293.4,4293.3,4.00728205]
[1759341431361,1.15351527,4293.4,4293.3,4.22278205]
[1759341431662,0.42131527,4293.4,4293.3,4.22278205]
[1759341432152,0.62891527,4293.4,4293.3,4.22278205]
[1759341432349,0.62891527,4293.4,4293.3,1.01498205]
[1759341432562,1.15351527,4293.4,4293.3,1.01498205]
[1759341432766,1.15351527,4293.4,4293.3,0.00168205]
[1759341433154,1.15351527,4293.4,4293.3,0.24168205]
[1759341434460,1.15351527,4293.4,4293.3,0.00168205]
[1759341434661,1.15351527,4293.4,4293.3,0.24168205]
[1759341436365,1.15351527,4293.4,4292.8,3.2078]
[1759341436366,1.15125,4292.9,4292.8,3.2078]
[1759341436565,1.15125,4292.9,4292.8,3.4478]
[1759341437066,1.15125,4292.9,4292.8,3.4261]
[1759341437363,1.15125,4292.9,4292.8,3.66805891]
[1759341437766,0.41905,4292.9,4292.8,4.22305891]
[1759341439068,0.62665,4292.9,4292.8,4.22305891]
[1759341439365,1.15125,4292.9,4292.8,4.22305891]
[1759341440967,0.95015,4292.9,4292.8,4.22305891]
[1759341443564,0.62515,4292.9,4292.8,4.22305891]
[1759341443971,0.41905,4292.9,4292.8,4.22305891]
[1759341446276,1.19825,4292.9,4292.8,4.22305891]
[1759341446570,1.19825,4292.9,4292.8,1.01525891]
[1759341446872,0.64055,4292.9,4292.8,0.77525891]
[1759341447068,0.64055,4292.9,4292.8,1.01525891]
[1759341448366,1.19825,4292.9,4292.8,0.77525891]
[1759341448676,1.19825,4292.9,4292.8,1.01525891]
[1759341449872,0.64055,4292.9,4292.8,1.01525891]
[1759341450268,0.97735,4292.9,4292.8,1.01525891]
[1759341450476,1.19825,4292.9,4292.8,0.00195891]
[1759341450669,1.19825,4292.9,4292.8,0.24195891]
[1759341453273,1.71600793,4292.9,4292.8,0.24195891]
[1759341454469,1.71600793,4292.9,4292.8,0.00195891]
[1759341454676,1.71600793,4292.9,4292.8,0.24195891]
[1759341455069,1.71600793,4292.9,4292.8,0.00195891]
[1759341455268,1.71682031,4292.9,4292.8,0.00195891]
[1759341456270,1.71682031,4292.9,4292.8,0.22625891]
[1759341457278,1.71682031,4292.9,4292.8,0.00195891]
[1759341462881,1.71682031,4292.9,4292.8,0.22625891]
[1759341463076,1.71682031,4292.9,4292.8,0.76105891]
[1759341463282,1.15912031,4292.9,4292.8,0.76105891]
[1759341463488,1.49592031,4292.9,4292.8,0.76105891]
[1759341464985,0.93762031,4292.9,4292.8,0.76105891]
[1759341466976,0.93762031,4292.9,4292.8,1.00105891]
[1759341468084,0.93762031,4292.9,4292.8,0.76105891]
[1759341468282,1.71682031,4292.9,4292.8,1.00105891]
[1759341468682,1.49592031,4292.9,4292.8,1.00105891]
[1759341468893,1.15912031,4292.9,4292.8,0.76105891]
[1759341469088,1.15912031,4292.9,4292.8,1.00105891]
[1759341470077,0.00231527,4293.4,4293.3,0.2243]
[1759341470281,0.00231527,4293.4,4293.3,4.62591]
[1759341470681,0.00231527,4293.4,4293.3,9.62591]
[1759341471084,0.00231527,4293.4,4293.3,9.2069]
[1759341471677,0.00231527,4293.4,4293.3,9.62591]
[1759341472290,0.41896,4293.9,4293.8,0.7591]
[1759341472485,0.41896,4293.9,4293.8,4.2069]
[1759341473292,1.20093218,4293.9,4293.8,4.2069]
[1759341475485,0.42172218,4293.9,4293.8,4.2069]
[1759341477695,0.41894,4294.1,4294.0,0.553]
[1759341477895,0.41894,4294.1,4294.0,1.1219]
[1759341478097,0.95959,4294.6,4294.5,0.4245]
[1759341478295,0.95959,4294.6,4294.5,0.9934]
[1759341478489,0.95959,4294.6,4294.5,1.1219]
[1759341478689,1.16817258,4294.6,4294.5,0.9934]
[1759341479295,0.96257258,4294.6,4294.5,1.1219]
[1759341479484,0.42187258,4294.6,4294.5,1.1219]
[1759341479689,0.96257258,4294.6,4294.5,1.1219]
[1759341481285,1.16817258,4294.6,4294.5,0.9934]
[1759341484700,1.16817258,4294.6,4294.5,1.1219]
[1759341484894,1.16817258,4294.6,4294.5,0.9934]
[1759341485498,0.4189,4294.4,4294.3,3.2078]
[1759341485799,1.1652,4294.4,4294.3,3.6606]
[1759341485994,1.1652,4294.4,4294.3,4.2012]
[1759341486386,0.4189,4294.4,4294.3,4.2012]
[1759341486587,0.6427,4294.4,4294.3,4.2012]
[1759341486794,1.1652,4294.4,4294.3,4.2012]
[1759341487397,0.4189,4294.4,4294.3,4.2012]
[1759341488791,0.00298258,4294.6,4294.3,4.2012]
[1759341489007,1.17322,4295.5,4295.4,0.2128]
[1759341489198,0.9744,4295.5,4295.4,0.7807]
[1759341489398,0.4294,4295.0,4294.9,0.5417]
[1759341489699,1.29095,4295.0,4294.9,0.7807]
[1759341490102,1.29276504,4295.0,4294.9,0.9924]
[1759341490504,1.16696504,4295.0,4294.9,0.9924]
[1759341491813,0.41888,4294.7,4294.6,0.3289]
[1759341492020,0.41888,4294.7,4294.6,0.9924]
[1759341492021,1.16518,4294.7,4294.6,0.9924]
[1759341493907,0.2238,4294.7,4294.6,0.9924]
[1759341494817,0.5407,4294.7,4294.6,0.9924]
[1759341495119,1.16519,4294.6,4294.5,3.4206]
[1759341495321,0.64446504,4295.0,4294.9,0.4245]
[1759341495517,0.64446504,4295.0,4294.9,0.9924]
[1759341495718,0.85006504,4295.0,4294.9,0.9924]
[1759341495918,1.16696504,4295.0,4294.9,0.9924]
[1759341496514,0.54251504,4295.0,4294.9,0.9924]
[1759341496816,0.22561504,4295.0,4294.9,0.9924]
[1759341497017,1.16508,4295.7,4295.6,0.7534]
[1759341497221,1.0468,4296.4,4295.6,0.7534]
[1759341497222,0.3169,4296.0,4295.6,0.6635]
[1759341497520,4.16727,4295.8,4295.7,0.7534]
[1759341497922,4.37528962,4295.8,4295.7,0.7534]
[1759341498515,1.16748962,4295.8,4295.7,0.7534]
[1759341500524,1.16748962,4295.8,4295.7,4.2002]
[1759341500821,0.64498962,4295.8,4295.7,4.2002]
[1759341502020,0.00241962,4295.8,4295.7,4.2002]
[1759341502321,0.5468,4296.4,4296.3,0.3092]
[1759341502515,0.5468,4296.4,4296.3,0.9836]
[1759341502721,3.3336,4297.0,4296.3,0.6744]
[1759341502722,0.34,4296.7,4296.3,0.6744]
[1759341502925,0.96548,4296.7,4296.6,0.7446]
[1759341503217,0.2092515,4296.7,4296.6,0.98548038]
[1759341503421,0.0024515,4296.7,4296.6,0.98548038]
[1759341505416,0.9661,4297.5,4297.4,0.7814]
[1759341505616,0.9661,4297.5,4297.4,1.0204]
[1759341505818,0.9661,4297.5,4297.4,0.6886]
[1759341506019,1.274,4297.5,4297.4,0.4629]
[1759341506522,1.27626539,4297.5,4297.4,0.239]
[1759341506917,1.14827,4296.8,4296.7,3.9892]
[1759341507119,1.14827,4296.8,4296.7,4.2282]
[1759341508724,0.2108,4296.8,4296.7,4.2282]
[1759341509021,0.12806539,4297.5,4297.3,0.5557]
[1759341509022,1.14821,4297.4,4297.3,0.5557]
[1759341509221,1.14821,4297.4,4297.3,1.0204]
[1759341511124,0.62941,4297.4,4297.3,1.0204]
[1759341511316,1.14821,4297.4,4297.3,1.0204]
[1759341513628,0.7296,4297.4,4297.3,1.0204]
[1759341513827,1.14821,4297.4,4297.3,1.0204]
[1759341514923,1.14824,4297.1,4297.0,0.7814]
[1759341515121,1.14824,4297.1,4297.0,1.1559]
[1759341515322,1.14824,4297.1,4297.0,0.7814]
[1759341515522,1.14824,4297.1,4297.0,1.0204]
[1759341516414,1.14824,4297.1,4297.0,0.7814]
[1759341516621,1.14824,4297.1,4297.0,1.0204]
[1759341519329,0.7296,4297.1,4297.0,1.0204]
[1759341519729,0.2108,4297.1,4297.0,1.1559]
[1759341520228,0.5187,4297.1,4297.0,1.1559]
[1759341520729,0.7296,4297.1,4297.0,1.0204]
[1759341523226,0.00226539,4297.5,4297.3,0.86822]
[1759341523431,0.00226539,4297.5,4297.4,1.0204]
[1759341524128,0.52096539,4297.5,4297.4,1.0204]
[1759341524433,0.00226539,4297.5,4297.4,1.0204]
[1759341524927,0.86666539,4297.5,4297.4,1.0204]
[1759341525333,0.86666539,4297.5,4297.4,0.4629]
[1759341525729,0.86666539,4297.5,4297.4,0.239]
[1759341527437,0.7296,4297.3,4297.2,3.2078]
[1759341527638,0.7296,4297.3,4297.2,3.4468]
[1759341527830,0.7296,4297.3,4297.2,0.4629]
[1759341528031,0.7296,4297.3,4297.2,0.239]
[1759341528233,0.7296,4297.3,4296.7,3.2078]
[1759341528234,1.14827,4296.8,4296.7,3.2078]
[1759341528539,1.14827,4296.8,4296.7,3.4468]
[1759341528740,1.14827,4296.8,4296.7,3.6707]
[1759341530333,1.65980084,4296.8,4296.7,3.6707]
[1759341531734,1.65980084,4296.8,4296.7,4.2282]
[1759341532135,1.65980084,4296.8,4296.7,3.4468]
[1759341532440,1.65980084,4296.8,4296.7,3.6707]
[1759341532641,1.65980084,4296.8,4296.7,3.2078]
[1759341532940,6.65980084,4296.8,4296.7,0.239]
[1759341534342,6.65980084,4296.8,4296.2,3.5192]
[1759341534538,0.94233084,4296.7,4296.2,3.5192]
[1759341534842,1.27553084,4296.7,4296.6,0.24088038]
[1759341535644,1.27553084,4296.7,4296.6,0.45628038]
[1759341535843,1.27560756,4296.7,4296.6,0.24088038]
[1759341536249,0.764,4296.7,4296.6,0.24088038]
[1759341536943,0.764,4296.7,4296.6,0.45628038]
[1759341537143,0.764,4296.7,4296.6,0.76768038]
[1759341537540,0.764,4296.7,4296.6,0.98338038]
[1759341538038,0.2164,4296.7,4296.6,0.98338038]
[1759341538641,0.5496,4296.7,4296.6,0.98338038]
[1759341538848,0.764,4296.7,4296.6,0.98338038]
[1759341539147,0.41867,4296.8,4296.7,0.7425]
[1759341540241,0.41867,4296.8,4296.7,5.7425]
[1759341540441,0.41867,4296.8,4296.7,0.7425]
[1759341540642,0.96827,4296.8,4296.7,0.7425]
[1759341541044,1.18267,4296.8,4296.7,0.7425]
[1759341541242,1.18267,4296.8,4296.7,0.9815]
[1759341542245,1.18267,4296.8,4296.6,0.00188038]
[1759341542448,1.18267,4296.8,4296.7,0.4544]
[1759341543450,1.18267,4296.8,4296.7,0.239]
[1759341545845,0.41868,4296.7,4296.6,0.00188038]
[1759341546142,1.18268,4296.7,4296.6,0.98338038]
[1759341546349,1.18268,4296.7,4296.6,0.21728038]
[1759341546544,1.18268,4296.7,4296.6,0.24088038]
[1759341547738,1.18268,4296.7,4296.6,0.21728038]
[1759341548051,1.18268,4296.7,4296.6,0.45628038]
[1759341548343,1.18268,4296.7,4296.6,0.21728038]
[1759341548544,1.18268,4296.7,4296.6,0.45628038]
[1759341549246,1.18268,4296.7,4296.6,0.98338038]
[1759341549549,0.63508,4296.7,4296.6,0.98338038]
[1759341550051,0.96828,4296.7,4296.6,0.98338038]
[1759341550847,1.18268,4296.7,4296.6,0.98338038]
[1759341551747,0.41868,4296.7,4296.6,0.98338038]
[1759341552245,1.18268,4296.7,4296.6,0.98338038]
[1759341552653,0.41868,4296.7,4296.6,0.98338038]
[1759341554255,0.96828,4296.7,4296.6,0.98338038]
[1759341554552,1.18268,4296.7,4296.6,0.98338038]
[1759341554748,1.18268,4296.7,4296.6,0.67198038]
[1759341555055,1.18268,4296.7,4296.6,0.00188038]
[1759341555542,1.18268,4296.7,4296.6,0.24088038]
[1759341555949,1.18268,4296.7,4296.6,0.00188038]
[1759341556161,1.69484489,4296.7,4296.6,0.24088038]
[1759341558059,6.69484489,4296.7,4296.6,0.00188038]
[1759341558350,1.18277,4295.8,4295.7,3.2078]
[1759341558542,1.27638988,4295.8,4295.2,0.3114]
[1759341558748,1.18282,4295.3,4295.2,0.5268]
[1759341558951,1.18282,4295.3,4295.2,0.7658]
[1759341559347,1.18282,4295.3,4295.2,0.45705771]
[1759341560159,1.6948593,4295.3,4295.2,0.00265771]
[1759341560354,1.6948593,4295.3,4295.2,0.24165771]
[1759341561459,1.18282,4295.3,4295.2,0.24165771]
[1759341562666,1.18282,4295.3,4295.2,0.99815771]
[1759341562866,0.41881,4295.4,4295.3,0.7565]
[1759341563055,0.63031,4295.4,4295.3,0.7565]
[1759341563551,0.94081,4295.4,4295.3,0.7565]
[1759341563953,1.14481,4295.4,4295.3,0.7565]
[1759341564967,0.94081,4295.4,4295.3,0.7565]
[1759341565460,0.94081,4295.4,4295.3,0.9955]
[1759341565648,0.94081,4295.4,4295.3,0.7565]
[1759341565851,0.94081,4295.4,4295.3,0.9955]
[1759341567559,0.94081,4295.4,4295.3,4.2033]
[1759341570654,0.63031,4295.4,4295.3,4.2033]
[1759341570859,0.41881,4295.4,4295.3,4.2033]
[1759341573258,1.14951,4295.4,4295.3,3.6249]
[1759341573457,1.14951,4295.4,4295.3,3.6689]
[1759341573856,1.14951,4295.4,4295.3,3.9783]
[1759341574164,1.14951,4295.4,4295.3,3.6689]
[1759341574761,1.14951,4295.4,4295.3,3.9783]
[1759341575264,1.14951,4295.4,4295.3,0.7705]
[1759341575763,1.14951,4295.4,4295.3,0.4611]
[1759341575962,1.14952,4295.3,4295.2,0.00265771]
[1759341576154,1.14952,4295.3,4295.2,0.24165771]
[1759341578961,0.1319,4295.0,4294.8,0.18525]
[1759341579166,1.14956,4294.9,4294.8,0.18525]
[1759341579364,1.14956,4294.9,4294.8,0.42425]
[1759341580069,1.14956,4294.9,4294.8,0.42712156]
[1759341582461,1.14956,4294.9,4294.8,0.18812156]
[1759341582667,1.14956,4294.9,4294.8,0.42712156]
[1759341582867,1.14956,4294.9,4294.8,1.16972156]
[1759341583667,0.41886,4294.9,4294.8,1.16972156]
[1759341584864,0.63506,4294.9,4294.8,1.16972156]
[1759341585066,0.94556,4294.9,4294.8,1.16972156]
[1759341586667,1.14956,4294.9,4294.8,1.16972156]
[1759341587166,1.14956,4294.9,4294.8,0.86032156]
[1759341587374,1.14956,4294.9,4294.8,0.64922156]
[1759341587774,1.14956,4294.9,4294.8,1.16972156]
[1759341589868,0.63506,4294.9,4294.8,1.16972156]
[1759341590068,0.41886,4294.9,4294.8,1.16972156]
[1759341590269,0.63506,4294.9,4294.8,1.16972156]
[1759341590470,0.94556,4294.9,4294.8,1.16972156]
[1759341590869,0.41886,4294.9,4294.8,1.16972156]